bitfinex-derivatives/quotes_SOLF0:USTF0_20251229
["timestamp","ask_amount","ask_price","bid_price","bid_amount"]
[1767019104148,3.49,124.02,123.89,113.1323]
[1767019104149,116.5088,124.02,123.89,113.1323]
[1767019104337,116.5088,124.02,123.94,0.02743748]
[1767019104338,0.06121777,123.97,123.94,0.02743748]
[1767019105241,0.06121777,123.97,123.9,115.9552]
[1767019105436,0.06121777,123.97,123.9,2.83]
[1767019105638,0.06121777,123.97,123.9,115.9575]
[1767019106031,0.06121777,123.97,123.9,98.17]
[1767019106230,116.5633,123.96,123.85,2.83]
[1767019106438,0.05533934,123.92,123.84,15.42689001]
[1767019106645,3.49,123.92,123.84,15.42689001]
[1767019106848,116.6016,123.92,123.84,15.42689001]
[1767019107036,7.2721,123.91,123.84,15.42689001]
[1767019107545,116.6013,123.92,123.84,15.42689001]
[1767019107748,116.6188,123.9,123.84,2.95339001]
[1767019108047,3.49,123.88,123.78,2.88]
[1767019108239,3.49,123.86,123.75,116.1438]
[1767019108434,116.6669,123.85,123.76,2.88]
[1767019108637,116.6749,123.84,123.72,98.24]
[1767019108838,11.67629999,123.87,123.71,113.2975]
[1767019108839,0.00329509,123.79,123.77,0.05438608]
[1767019109044,3.49,123.87,123.76,116.08]
[1767019109238,3.49,123.87,123.77,2.83]
[1767019109239,124.0,123.86,123.77,2.83]
[1767019109550,127.49,123.86,123.77,2.83]
[1767019109747,113.1831,123.84,123.73,2.83]
[1767019110043,0.05359015,123.8,123.77,0.06190279]
[1767019111033,124.0,123.86,123.77,0.06190279]
[1767019111236,113.1578,123.87,123.77,95.4]
[1767019111437,211.9589,123.88,123.77,95.4]
[1767019111645,113.13,123.9,123.78,2.78]
[1767019111847,116.62,123.9,123.79,2.78]
[1767019112052,3.49,123.9,123.8,95.4]
[1767019112349,0.05873294,123.86,123.84,0.05986328]
[1767019112739,0.05873294,123.86,123.76,2.78]
[1767019112944,116.6111,123.91,123.79,2.78]
[1767019113148,3.49,123.91,123.81,2.78]
[1767019113348,113.0818,123.96,123.81,2.78]
[1767019113349,113.0818,123.96,123.83,113.1905]
[1767019113542,113.0818,123.96,123.84,115.9618]
[1767019113543,3.49,123.95,123.84,115.9618]
[1767019113741,0.05982155,123.91,123.88,0.05426843]
[1767019114242,116.5743,123.95,123.88,0.05426843]
[1767019114243,3.49,123.95,123.88,0.05426843]
[1767019114551,3.49,123.94,123.88,0.05426843]
[1767019115454,0.05406189,123.92,123.88,0.05426843]
[1767019115849,0.00406189,123.92,123.88,0.05426843]
[1767019116850,0.00406189,123.92,123.81,95.42]
[1767019116851,3.49,123.9,123.81,95.42]
[1767019117048,3.49,123.92,123.81,98.2]
[1767019117249,113.0846,123.95,123.84,2.78]
[1767019117250,3.49,123.95,123.84,2.78]
[1767019117443,116.5818,123.94,123.84,2.78]
[1767019117748,116.5929,123.93,123.82,95.42]
[1767019117958,0.05431564,123.89,123.86,0.0596381]
[1767019119053,0.00431564,123.89,123.86,0.0596381]
[1767019119460,3.49,123.96,123.87,2.73]
[1767019119755,3.49,123.96,123.87,211.3243]
[1767019119945,3.49,123.96,123.87,2.73]
[1767019120346,0.05685681,123.93,123.9,0.06139958]
[1767019121051,0.05685681,123.93,123.9,0.00139958]
[1767019123449,106.13899405,123.99,123.9,0.00139958]
[1767019123751,106.13899405,123.99,123.89,2.73]
[1767019123752,3.49,123.99,123.89,2.73]
[1767019123952,3.49,123.99,123.9,98.17]
[1767019124757,0.05655809,123.96,123.93,0.05896927]
[1767019124958,3.49,124.03,123.93,2.72896927]
[1767019125256,3.49,124.03,123.93,2.67]
[1767019125660,3.44,124.02,123.94,95.44]
[1767019126052,3.50110153,123.99,123.9,98.09]
[1767019126248,3.44,123.99,123.9,98.09]
[1767019127057,0.05504248,123.96,123.93,0.05997886]
[1767019127248,0.05504248,123.96,123.88,95.42]
[1767019127444,113.0576,123.98,123.88,95.42]
[1767019127445,116.4976,123.98,123.88,95.42]
[1767019127648,3.44,123.98,123.87,2.73]
[1767019127849,3.44,123.98,123.87,98.15]
[1767019128350,0.0551997,123.94,123.91,0.05955738]
[1767019128654,3.44,123.98,123.91,0.05955738]
[1767019129658,0.05288615,123.96,123.91,0.05955738]
[1767019130162,3.44,124.02,123.93,9.9604]
[1767019130464,3.44,124.02,123.93,98.11]
[1767019131061,3.44,124.02,123.92,95.42]
[1767019131359,0.06101954,123.98,123.91,95.42]
[1767019132263,0.06101954,123.98,123.9,95.42]
[1767019132559,0.05721537,123.95,123.93,0.05381296]
[1767019132860,0.00184353,123.95,123.93,0.05381296]
[1767019133155,112.9802,124.07,123.93,2.69381296]
[1767019133156,116.4519,124.03,123.93,2.69381296]
[1767019133354,3.44,124.02,123.93,2.64]
[1767019133853,7.2668,124.0,123.93,2.64]
[1767019134051,7.2668,124.0,123.9,2.64]
[1767019134253,0.05246515,123.98,123.95,1.04e-06]
[1767019134454,10.76036515,123.98,123.95,1.04e-06]
[1767019134962,7.2691,123.96,123.87,9.9739]
[1767019135156,3.44,123.96,123.87,9.9739]
[1767019135459,3.44,123.96,123.88,7.2734]
[1767019135660,3.44,123.96,123.87,2.7]
[1767019135853,3.44,123.96,123.88,95.42]
[1767019136156,0.05226948,123.93,123.91,0.05278937]
[1767019137463,3.44,123.96,123.91,0.05278937]
[1767019138458,0.05843937,123.95,123.91,0.05278937]
[1767019138762,116.52383937,123.95,123.91,0.00278937]
[1767019138959,3.38,123.94,123.91,0.00278937]
[1767019139563,7.2709,123.93,123.91,0.00278937]
[1767019139763,10.6509,123.93,123.91,0.00278937]
[1767019140065,3.38,123.93,123.83,98.15]
[1767019140264,3.38,123.93,123.83,2.75]
[1767019140557,215.71439405,123.95,123.84,2.75]
[1767019140558,95.38,123.95,123.84,2.75]
[1767019140764,10.6494,123.96,123.88,7.2735]
[1767019140949,0.05904121,123.93,123.91,0.06033648]
[1767019141154,3.38,123.98,123.91,0.05885835]
[1767019141460,10.6479,123.98,123.91,0.05885835]
[1767019142258,113.0089,124.04,123.91,113.17475835]
[1767019142468,3.38,124.05,123.94,2.64]
[1767019142650,3.38,124.05,123.94,115.7289]
[1767019142853,10.6438,124.05,123.96,7.2687]
[1767019143055,3.38,124.05,123.96,2.64]
[1767019143357,0.05550449,124.02,123.99,0.05714721]
[1767019143555,3.38,124.05,123.99,0.05714721]
[1767019144663,0.05795876,124.03,123.99,0.05714721]
[1767019144862,0.05795876,124.03,123.95,7.2692]
[1767019145064,3.38,124.05,123.95,7.2692]
[1767019145366,3.38,124.05,123.93,115.7375]
[1767019145367,10.6445,124.04,123.93,105.3104]
[1767019145667,10.6445,124.04,123.94,2.7]
[1767019145870,0.05347944,124.0,123.98,0.05273593]
[1767019146068,3.38,124.08,123.96,2.7]
[1767019146259,116.3459,124.08,123.96,2.7]
[1767019146568,3.38,123.99,123.9,98.1]
[1767019146766,3.38,123.98,123.87,9.94899405]
[1767019146962,3.38,123.98,123.88,7.2736]
[1767019147167,215.66279405,124.01,123.91,0.05897219]
[1767019147168,0.00382972,123.94,123.91,0.05897219]
[1767019147474,98.76,124.01,123.91,9.9217]
[1767019147981,98.76,124.01,123.89,7.2726]
[1767019147982,3.38,124.0,123.89,7.2726]
[1767019148168,3.38,124.0,123.89,105.3226]
[1767019148365,3.38,124.06,123.95,115.6716]
[1767019148567,3.38,124.06,123.95,2.59]
[1767019148963,7.265,124.03,123.95,2.59]
[1767019149467,0.05637307,124.0,123.98,0.05206605]
[1767019149968,0.05637307,124.0,123.91,2.59]
[1767019150159,3.38,124.02,123.91,2.59]
[1767019150671,3.38,124.0,123.9,7.2723]
[1767019150976,0.05745981,123.96,123.94,0.0512022]
[1767019153172,0.05745981,123.96,123.89,2.59]
[1767019154071,0.05745981,123.96,123.9,115.7161]
[1767019154378,0.05745981,123.96,123.91,0.05846189]
[1767019154864,3.43745981,123.96,123.91,0.05846189]
[1767019155376,3.43745981,123.96,123.87,2.59]
[1767019155577,3.38,123.96,123.87,2.59]
[1767019156381,0.05261946,123.93,123.9,0.05694076]
[1767019156876,0.05261946,123.93,123.84,2.65]
[1767019157079,3.33,123.95,123.84,2.65]
[1767019157578,7.2705,123.94,123.85,7.275]
[1767019157768,0.05614079,123.91,123.88,0.05538699]
[1767019158981,3.33,123.95,123.88,0.05538699]
[1767019159578,10.5999,123.95,123.88,0.05538699]
[1767019160073,0.06120213,123.93,123.88,0.05538699]
[1767019161377,0.00120213,123.93,123.88,211.18828699]
[1767019161577,0.00120213,123.93,123.89,2.53]
[1767019163680,0.00120213,123.93,123.88,0.05538699]
[1767019165086,7.27200213,123.93,123.88,0.05538699]
[1767019165684,0.00120213,123.93,123.88,0.05538699]
[1767019166183,7.2713,123.92,123.88,0.05538699]
[1767019167586,0.00120213,123.93,123.88,0.05538699]
[1767019169387,0.00120213,123.93,123.88,2.58538699]
[1767019169581,0.00120213,123.93,123.88,98.00538699]
[1767019169779,0.00120213,123.93,123.88,105.27848699]
[1767019170184,0.00120213,123.93,123.88,98.00538699]
[1767019171588,95.4,123.98,123.89,2.53]
[1767019171785,98.73,123.98,123.89,2.53]
[1767019172590,0.05128092,123.95,123.92,0.05250717]
[1767019173488,3.38128092,123.95,123.86,2.53]
[1767019173683,3.33,123.95,123.86,2.53]
[1767019174097,3.33,123.95,123.83,113.1848]
[1767019174098,3.33,123.92,123.83,2.58]
[1767019174389,3.33,123.95,123.83,2.58]
[1767019174586,0.00359865,123.9,123.88,0.05471955]
[1767019174784,3.33,123.95,123.88,0.05471955]
[1767019175096,98.73,123.98,123.88,2.58471955]
[1767019175292,98.73,123.98,123.88,2.53]
[1767019175792,0.05573917,123.94,123.92,0.05889088]
[1767019175993,0.05573917,123.94,123.85,211.1774]
[1767019176186,7.2702,123.94,123.86,7.2747]
[1767019176392,3.33,123.96,123.86,2.59]
[1767019176686,3.33,123.92,123.83,2.59]
[1767019176891,3.33,123.91,123.83,2.59]
[1767019177096,0.05313623,123.88,123.86,0.00115373]
[1767019177287,3.38313623,123.88,123.77,2.65]
[1767019177590,3.33,123.88,123.77,2.65]
[1767019177988,7.2751,123.86,123.77,2.65]
[1767019178188,3.33,123.86,123.77,2.65]
[1767019178397,0.05699837,123.83,123.8,0.06192644]
[1767019178692,3.33,123.89,123.8,2.66192644]
[1767019178892,3.33,123.89,123.8,2.6]
[1767019179389,3.33,123.88,123.77,98.02]
[1767019179795,0.05819638,123.84,123.81,0.06039498]
[1767019181091,0.05819638,123.84,123.77,2.6]
[1767019181496,0.05819638,123.84,123.78,2.6]
[1767019181690,0.05819638,123.84,123.78,115.8342]
[1767019181885,3.33,123.88,123.79,2.54]
[1767019182186,3.33,123.91,123.82,2.54]
[1767019182597,98.75,123.94,123.87,7.274]
[1767019182792,0.05487493,123.92,123.89,0.05556205]
[1767019183095,3.38487493,123.92,123.82,2.59]
[1767019183296,3.33,123.92,123.82,2.59]
[1767019183798,3.33,123.92,123.82,98.03]
[1767019183995,0.06047631,123.88,123.86,0.05987606]
[1767019184784,0.06047631,123.88,123.8,102.7179]
[1767019184987,3.33,123.9,123.8,7.2779]
[1767019185187,116.4692,123.89,123.79,2.59]
[1767019185503,3.33,123.87,123.76,98.03]
[1767019185683,0.05238574,123.83,123.8,0.05681034]
[1767019187897,0.00238574,123.83,123.8,0.05681034]
[1767019189393,0.00238574,123.83,123.8,2.60681034]
[1767019189594,0.00238574,123.83,123.8,211.28301034]
[1767019189900,0.00238574,123.83,123.81,2.55]
[1767019190588,0.00238574,123.83,123.81,9.8276]
[1767019190902,0.00238574,123.83,123.8,95.51681034]
[1767019191094,0.00238574,123.83,123.81,2.55]
[1767019191700,0.00238574,123.83,123.81,9.8276]
[1767019196204,0.00238574,123.83,123.81,2.55]
[1767019198397,0.00238574,123.83,123.8,98.06681034]
[1767019198608,0.00238574,123.83,123.81,7.2775]
[1767019198997,0.00238574,123.83,123.8,98.06681034]
[1767019199201,0.00238574,123.83,123.81,7.2776]
[1767019199706,0.00238574,123.83,123.81,102.7376]
[1767019199906,0.00238574,123.83,123.8,2.60681034]
[1767019200514,0.00238574,123.83,123.8,0.05681034]
[1767019200902,3.35238574,123.83,123.74,2.55]
[1767019201104,10.6252,123.86,123.76,2.61]
[1767019201307,3.35,123.86,123.77,2.61]
[1767019201604,3.35,123.89,123.79,2.61]
[1767019201803,3.35,123.93,123.82,113.1935]
[1767019202003,0.0509216,123.89,123.86,0.06148246]
[1767019204212,0.0509216,123.89,123.86,0.00148246]
[1767019204602,7.3242216,123.89,123.86,0.00148246]
[1767019205414,0.0509216,123.89,123.86,0.00148246]
[1767019205610,3.4009216,123.89,123.86,0.00148246]
[1767019205819,10.6741216,123.89,123.86,0.00148246]
[1767019207016,3.4009216,123.89,123.86,0.00148246]
[1767019207321,3.35,123.87,123.79,7.2788]
[1767019208042,3.35,123.86,123.74,229.2093]
[1767019208314,3.35,123.89,123.78,2.67]
[1767019208518,3.35,123.89,123.79,2.67]
[1767019208916,3.35,123.89,123.79,98.13]
[1767019209117,0.05425231,123.85,123.79,98.13]
[1767019209319,0.05425231,123.85,123.8,9.9481]
[1767019209712,0.05425231,123.85,123.79,95.46]
[1767019209917,0.05425231,123.85,123.79,102.7386]
[1767019210216,0.05425231,123.85,123.77,2.67]
[1767019210416,0.06189236,123.82,123.78,95.46]
[1767019211014,0.00189236,123.82,123.78,95.46]
[1767019211215,0.00189236,123.82,123.77,2.67]
[1767019211521,0.00189236,123.82,123.77,98.13]
[1767019211711,0.00189236,123.82,123.76,115.8631]
[1767019211912,0.00189236,123.82,123.78,95.51807393]
[1767019212112,3.35,123.89,123.79,2.61]
[1767019212713,3.35,123.85,123.76,2.61]
[1767019212918,3.35,123.85,123.74,98.07]
[1767019213119,0.05370715,123.81,123.78,0.05132076]
[1767019214123,3.35,123.85,123.78,0.05132076]
[1767019214417,107.24536436,123.9,123.79,102.7587]
[1767019214418,10.6236,123.88,123.79,102.7587]
[1767019214808,3.35,123.87,123.79,102.7587]
[1767019215013,0.05440439,123.84,123.82,0.05371743]
[1767019215422,0.05440439,123.84,123.78,98.04]
[1767019215617,0.05440439,123.84,123.78,2.56]
[1767019216321,0.05440439,123.84,123.8,0.05303515]
[1767019216523,0.05328001,123.83,123.8,0.05303515]
[1767019217922,3.48328001,123.83,123.72,2.61]
[1767019218222,3.43,123.83,123.73,2.61]
[1767019218422,10.7074,123.82,123.73,98.09]
[1767019218819,0.05410749,123.79,123.73,98.09]
[1767019219224,0.05410749,123.79,123.75,7.2812]
[1767019219420,0.05410749,123.79,123.7,24.21]
[1767019219421,3.48410749,123.79,123.7,2.61]
[1767019219620,3.43,123.79,123.71,95.48]
[1767019220021,3.43,123.79,123.7,98.09]
[1767019220223,10.709,123.79,123.71,7.2831]
[1767019220725,10.709,123.79,123.74,0.0589178]
[1767019221626,0.05112604,123.78,123.74,0.0589178]
[1767019222329,0.05112604,123.78,123.72,7.2828]
[1767019222530,3.43,123.79,123.7,2.61]
[1767019223041,3.43,123.79,123.66,113.339]
[1767019223237,0.05807916,123.74,123.71,0.05963774]
[1767019223428,3.43,123.77,123.67,116.0028]
[1767019223727,0.05085154,123.74,123.71,0.05991503]
[1767019223922,3.43,123.81,123.71,2.67991503]
[1767019224123,3.43,123.81,123.71,2.62]
[1767019224422,3.43,123.81,123.72,115.9117]
[1767019224823,0.05794943,123.78,123.75,0.05289542]
[1767019225129,3.43,123.81,123.75,0.05289542]
[1767019225330,3.43,123.8,123.75,0.00289542]
[1767019225636,3.43,123.77,123.65,2.61]
[1767019225819,3.43,123.77,123.66,98.11]
[1767019226221,10.7109,123.76,123.66,98.11]
[1767019226531,3.43,123.75,123.66,2.61]
[1767019226732,0.05854014,123.72,123.69,0.05897786]
[1767019227819,0.05854014,123.72,123.64,95.52]
[1767019228021,3.43,123.74,123.64,2.67]
[1767019228233,3.43,123.74,123.65,2.67]
[1767019228433,124.0,123.75,123.66,2.67]
[1767019228636,3.43,123.77,123.66,116.0114]
[1767019228928,95.5,123.78,123.7,2.7227463]
[1767019229130,3.43,123.8,123.7,2.67]
[1767019229337,3.43,123.8,123.71,2.67]
[1767019229721,3.43,123.84,123.73,2.67]
[1767019229924,0.05614412,123.8,123.77,0.05488264]
[1767019230131,0.05614412,123.8,123.77,0.0579831]
[1767019230331,0.05614412,123.8,123.73,2.67]
[1767019231027,0.05614412,123.8,123.7,113.3068]
[1767019231028,3.48614412,123.8,123.7,113.3068]
[1767019231229,3.43,123.8,123.71,7.2833]
[1767019231428,3.43,123.8,123.74,0.05231167]
[1767019231429,0.05140983,123.77,123.74,0.05231167]
[1767019231936,0.05140983,123.77,123.74,0.00231167]
[1767019236531,10.7062,123.84,123.75,2.73]
[1767019236833,3.43,123.84,123.75,2.73]
[1767019237428,3.43,123.83,123.72,2.73]
[1767019237640,3.48783484,123.81,123.72,2.73]
[1767019237935,3.43,123.81,123.72,2.73]
[1767019238538,3.43,123.81,123.69,2.79]
[1767019238539,0.0586105,123.78,123.69,2.79]
[1767019238730,0.05253189,123.75,123.7,95.54]
[1767019238932,0.05253189,123.75,123.7,98.33]
[1767019239136,0.05253189,123.75,123.7,2.79]
[1767019240142,0.05253189,123.75,123.67,10.0755]
[1767019240437,0.0041629,123.72,123.67,105.6155]
[1767019240625,0.0041629,123.72,123.67,2.79]
[1767019241532,0.0041629,123.72,123.68,0.05597068]
[1767019244839,0.0041629,123.72,123.68,2.79597068]
[1767019245430,0.0041629,123.72,123.68,10.08127068]
[1767019246031,0.0041629,123.72,123.68,0.05597068]
[1767019247038,0.0041629,123.72,123.68,2.79597068]
[1767019247440,0.0041629,123.72,123.68,98.35597068]
[1767019248037,95.52,123.79,123.71,2.74]
[1767019248338,7.2787,123.8,123.71,2.74]
[1767019248339,3.34,123.81,123.71,2.74]
[1767019248544,3.34,123.81,123.73,10.0222]
[1767019248947,7.2767,123.83,123.76,0.06013358]
[1767019249243,7.2767,123.83,123.74,7.2817]
[1767019249443,10.6167,123.83,123.74,7.2817]
[1767019249643,10.6173,123.82,123.74,7.2817]
[1767019249942,0.05924965,123.79,123.77,0.05986287]
[1767019250340,0.05924965,123.79,123.73,2.74]
[1767019251252,0.05924965,123.79,123.75,0.05574774]
[1767019251440,0.05138562,123.78,123.75,0.05574774]
[1767019254441,3.30138562,123.78,123.7,98.28]
[1767019254648,3.25,123.77,123.68,2.8]
[1767019254854,106.04096906,123.8,123.69,2.8]
[1767019255046,98.77,123.8,123.7,2.8]
[1767019255559,3.31073492,123.76,123.67,2.8]
[1767019255748,3.31073492,123.76,123.68,2.8]
[1767019255749,0.06183584,123.73,123.68,2.8]
[1767019255945,0.00183584,123.73,123.68,2.8]
[1767019256845,0.00183584,123.73,123.69,0.05916464]
[1767019257554,0.00183584,123.73,123.69,7.34386464]
[1767019258242,0.00183584,123.73,123.7,7.284]
[1767019258446,3.25,123.79,123.7,2.74]
[1767019258855,3.25,123.78,123.7,2.74]
[1767019259053,3.25,123.78,123.67,98.28]
[1767019259353,0.06152194,123.74,123.71,0.06024268]
[1767019260051,0.06152194,123.74,123.71,0.00024268]
[1767019260848,3.31152194,123.74,123.71,0.00024268]
[1767019261258,10.5333,123.72,123.63,15.63650411]
[1767019261750,10.535,123.69,123.63,15.63650411]
[1767019261952,3.25,123.69,123.63,15.63650411]
[1767019263254,113.40041272,123.67,123.65,0.05383954]
[1767019263457,113.3585,123.65,123.54,3.35]
[1767019263755,7.27096906,123.67,123.55,3.35]
[1767019263950,7.27096906,123.67,123.56,3.35]
[1767019264254,102.81096906,123.69,123.58,3.35]
[1767019264460,0.05395572,123.63,123.58,3.35]
[1767019265147,0.00395572,123.63,123.58,3.35]
[1767019266262,0.00395572,123.63,123.59,0.05107086]
[1767019268565,0.00395572,123.63,123.59,3.40107086]
[1767019268859,7.27096906,123.73,123.62,3.35]
[1767019269056,102.83096906,123.73,123.62,3.35]
[1767019269457,7.2833,123.72,123.62,10.6387]
[1767019269763,0.05709582,123.68,123.66,0.05836385]
[1767019270056,0.05709582,123.68,123.62,3.35]
[1767019270551,0.05709582,123.68,123.58,3.35]
[1767019270758,7.27096906,123.67,123.58,3.35]
[1767019270957,0.06073006,123.64,123.58,3.35]
[1767019272665,0.06073006,123.64,123.56,7.2921]
[1767019272961,0.05233022,123.61,123.55,3.35]
[1767019273759,0.05233022,123.61,123.55,10.6428]
[1767019274263,0.05233022,123.61,123.53,102.8938]
[1767019274569,7.2886,123.63,123.53,106.2438]
[1767019274764,7.2886,123.63,123.53,10.6438]
[1767019275166,7.2886,123.63,123.54,10.6434]
[1767019275464,0.05566395,123.6,123.57,0.05694115]
[1767019278167,7.2876,123.65,123.57,3.31694115]
[1767019278467,7.2876,123.65,123.57,3.26]
[1767019278767,7.2879,123.64,123.54,10.5534]
[1767019278963,7.2879,123.64,123.54,106.1734]
[1767019279167,0.05182079,123.6,123.58,0.05147626]
[1767019281964,0.05182079,123.6,123.51,118.14447876]
[1767019282169,7.2891,123.62,123.52,3.26]
[1767019282373,95.62,123.65,123.53,113.4658]
[1767019282569,95.62,123.65,123.56,10.5521]
[1767019283179,0.05797541,123.62,123.59,0.05531281]
[1767019286274,113.3003,123.72,123.59,3.31531281]
[1767019286467,7.27096906,123.7,123.59,3.26]
[1767019286672,7.27096906,123.73,123.62,3.26]
[1767019286979,95.64,123.72,123.62,3.26]
[1767019287367,0.05288821,123.68,123.66,0.06008398]
[1767019287570,95.64,123.72,123.66,0.06008398]
[1767019287770,95.64,123.75,123.66,3.32008398]
[1767019287967,7.282,123.74,123.66,3.26]
[1767019288178,7.27096906,123.7,123.62,3.26]
[1767019288382,7.2855,123.68,123.62,3.26]
[1767019288785,0.0599758,123.66,123.64,0.05255649]
[1767019290073,0.0599758,123.66,123.59,10.5505]
[1767019290273,0.0599758,123.66,123.6,3.26]
[1767019290872,0.0599758,123.66,123.57,3.26]
[1767019291080,0.05596176,123.63,123.6,0.0560688]
[1767019291278,0.05596176,123.63,123.57,3.26]
[1767019291781,0.05596176,123.63,123.53,3.26]
[1767019292079,7.2921,123.57,123.46,7.2981]
[1767019292281,7.27096906,123.55,123.43,132.65816628]
[1767019292483,0.05547633,123.53,123.43,19.09976628]
[1767019292686,7.27096906,123.52,123.43,19.09976628]
[1767019292977,7.27096906,123.52,123.43,15.83976628]
[1767019293178,113.4738,123.53,123.44,3.26]
[1767019293383,120.74666906,123.52,123.44,3.26]
[1767019293685,0.05379152,123.49,123.44,3.26]
[1767019294285,216.33476906,123.56,123.44,3.26]
[1767019294486,95.62,123.56,123.45,3.26]
[1767019294884,124.0,123.55,123.46,98.9]
[1767019295088,116.7452,123.6,123.49,1.89]
[1767019295277,0.05366943,123.56,123.49,1.89]
[1767019295477,0.05366943,123.56,123.47,95.66]
[1767019295478,3.39366943,123.56,123.47,95.66]
[1767019295675,3.34,123.56,123.45,97.55]
[1767019295874,3.34,123.56,123.46,1.89]
[1767019296083,124.0,123.55,123.46,1.89]
[1767019296484,0.05624549,123.52,123.46,97.55]
[1767019296685,10.6307,123.59,123.47,1.89]
[1767019296874,3.34,123.58,123.47,1.89]
[1767019297075,3.34,123.58,123.48,1.83]
[1767019297284,124.0,123.6,123.5,1.83]
[1767019297484,3.34,123.55,123.46,97.51]
[1767019297675,0.05464293,123.52,123.49,0.05607897]
[1767019298789,0.00464293,123.52,123.49,0.05607897]
[1767019298981,0.00464293,123.52,123.5,95.68]
[1767019299185,0.00464293,123.52,123.51,1.78]
[1767019299586,0.00464293,123.52,123.5,97.46]
[1767019299990,0.00464293,123.52,123.5,99.08]
[1767019300590,0.00464293,123.52,123.5,1.78]
[1767019300791,0.00464293,123.52,123.51,95.68]
[1767019300992,0.00464293,123.52,123.5,1.78]
[1767019301193,0.00464293,123.52,123.49,95.73607897]
[1767019301694,0.00464293,123.52,123.5,95.68]
[1767019302486,3.34,123.6,123.51,1.78]
[1767019302996,127.34,123.64,123.53,1.78]
[1767019303194,127.34,123.64,123.54,95.68]
[1767019303496,0.06187697,123.6,123.58,0.05408954]
[1767019304390,0.06187697,123.6,123.58,0.00408954]
[1767019304788,113.4566,123.55,123.43,15.83976628]
[1767019304993,3.34,123.51,123.43,15.83976628]
[1767019305184,3.34,123.5,123.43,15.83976628]
[1767019305383,10.61096906,123.49,123.43,1.98978905]
[1767019305792,0.06140383,123.47,123.45,0.06048972]
[1767019306494,3.29,123.59,123.48,115.2821]
[1767019306792,3.29,123.59,123.49,104.7663]
[1767019307098,3.29,123.59,123.49,115.2731]
[1767019307294,3.29,123.59,123.49,1.77]
[1767019307595,0.0577836,123.55,123.53,0.05470587]
[1767019308487,0.0577836,123.55,123.53,0.00470587]
[1767019309289,3.29,123.59,123.53,0.00470587]
[1767019309684,3.29,123.58,123.53,0.00470587]
[1767019310389,0.05909579,123.57,123.53,0.00470587]
[1767019311401,3.34909579,123.57,123.5,95.7]
[1767019311590,3.34909579,123.57,123.49,95.7]
[1767019311791,3.29,123.57,123.49,95.7]
[1767019311995,3.29,123.57,123.48,7.2969]
[1767019312196,3.29,123.57,123.49,95.7]
[1767019312398,0.05793285,123.54,123.52,0.05434202]
[1767019314800,0.05793285,123.54,123.52,0.00434202]
[1767019316201,0.05793285,123.54,123.45,113.54]
[1767019316202,3.34793285,123.54,123.45,7.2986]
[1767019316400,3.29,123.54,123.45,102.9986]
[1767019317408,0.05724379,123.51,123.48,0.05128707]
[1767019319714,0.05724379,123.51,123.48,0.00128707]
[1767019320614,3.23,123.6,123.48,97.59128707]
[1767019320918,3.23,123.6,123.49,1.87]
[1767019321405,3.23,123.6,123.51,1.87]
[1767019321613,3.23,123.63,123.54,1.92384197]
[1767019321811,3.23,123.63,123.55,95.72]
[1767019322003,116.6168,123.62,123.46,227.0537]
[1767019322312,113.3936,123.61,123.51,1.87]
[1767019322712,0.00101252,123.57,123.55,0.05192153]
[1767019323208,0.00101252,123.57,123.55,95.77192153]
[1767019323812,237.3679,123.64,123.55,95.77192153]
[1767019324111,113.3679,123.64,123.55,95.72]